bitfinex/quotes_BTCUSD_20251117
["timestamp","ask_amount","ask_price","bid_price","bid_amount"]
[1763375857631,0.00284145,96039.0,96038.0,3.81442]
[1763375858437,0.00284145,96039.0,96038.0,3.69202]
[1763375858639,0.00284145,96039.0,96038.0,3.69262]
[1763375859462,0.00284145,96039.0,96038.0,3.66522]
[1763375860386,0.00284145,96039.0,96038.0,3.54982]
[1763375860598,0.00284145,96039.0,96038.0,3.67712]
[1763375860810,0.00284145,96039.0,96038.0,3.65012]
[1763375861018,0.00284145,96039.0,96038.0,3.58952]
[1763375861618,0.00284145,96039.0,96038.0,3.60312]
[1763375862399,0.00284145,96039.0,96038.0,1.42012]
[1763375862582,0.00284145,96039.0,96038.0,1.37082]
[1763375862788,0.00284145,96039.0,96038.0,0.36112]
[1763375863350,0.05498145,96039.0,96038.0,0.31238]
[1763375863603,0.08473739,96039.0,96038.0,0.31238]
[1763375863821,0.61598612,96039.0,96038.0,0.31238]
[1763375864167,0.61598612,96039.0,96038.0,0.30191986]
[1763375864603,0.58623018,96039.0,96038.0,0.30191986]
[1763375864846,0.58823018,96039.0,96038.0,0.30191986]
[1763375866313,0.59023018,96039.0,96038.0,0.30191986]
[1763375870354,0.38198145,96039.0,96038.0,0.30191986]
[1763375872015,0.59023018,96039.0,96038.0,0.30191986]
[1763375873392,0.58927918,96039.0,96038.0,0.30191986]
[1763375875181,0.38103045,96039.0,96038.0,0.30191986]
[1763375876492,0.37903045,96039.0,96038.0,0.30191986]
[1763375876715,0.37703045,96039.0,96038.0,0.30191986]
[1763375876919,0.38103045,96039.0,96038.0,0.30191986]
[1763375878567,0.58927918,96039.0,96038.0,0.30191986]
[1763375879383,0.38103045,96039.0,96038.0,0.30191986]
[1763375880198,0.41234567,96039.0,96038.0,0.30191986]
[1763375880738,0.6205944,96039.0,96038.0,0.30191986]
[1763375882024,0.41234567,96039.0,96038.0,0.30191986]
[1763375884053,0.6205944,96039.0,96038.0,0.30191986]
[1763375886114,0.41234567,96039.0,96038.0,0.30191986]
[1763375886893,0.6205944,96039.0,96038.0,0.30191986]
[1763375888102,0.41234567,96039.0,96038.0,0.30191986]
[1763375888445,0.6205944,96039.0,96038.0,0.30191986]
[1763375889054,0.66401314,96039.0,96038.0,0.30191986]
[1763375890605,0.66201314,96039.0,96038.0,0.30191986]
[1763375890845,0.66001314,96039.0,96038.0,0.30191986]
[1763375891040,0.66401314,96039.0,96038.0,0.30191986]
[1763375891543,0.66001314,96039.0,96038.0,0.30191986]
[1763375891926,0.66201314,96039.0,96038.0,0.30191986]
[1763375892245,0.66501314,96039.0,96038.0,0.30191986]
[1763375899754,0.69476908,96039.0,96038.0,0.29407986]
[1763375901562,0.69476908,96039.0,95987.0,0.02416]
[1763375901563,0.20831094,96011.0,95990.0,0.2]
[1763375901765,0.75182928,96000.0,95997.0,0.05212215]
[1763375901994,0.01665,96000.0,95997.0,0.05212215]
[1763375902306,0.01665,95998.0,95990.0,4.598e-05]
[1763375902502,0.02489,95999.0,95990.0,4.598e-05]
[1763375902503,0.02892,95991.0,95990.0,4.598e-05]
[1763375902920,0.05381,95991.0,95990.0,4.598e-05]
[1763375904296,0.05481,95991.0,95990.0,4.598e-05]
[1763375904741,0.001,95991.0,95990.0,4.598e-05]
[1763375904979,0.002,95991.0,95990.0,4.598e-05]
[1763375905686,0.09922874,95991.0,95990.0,4.598e-05]
[1763375905886,0.6305816,95991.0,95990.0,4.598e-05]
[1763375906016,0.65141884,95991.0,95990.0,4.598e-05]
[1763375907435,0.65041884,95991.0,95990.0,4.598e-05]
[1763375908067,0.65241884,95991.0,95990.0,4.598e-05]
[1763375909459,0.44406598,95991.0,95990.0,4.598e-05]
[1763375910108,0.65241884,95991.0,95990.0,4.598e-05]
[1763375911087,0.44406598,95991.0,95990.0,4.598e-05]
[1763375911288,0.65241884,95991.0,95990.0,4.598e-05]
[1763375912110,0.40064724,95991.0,95990.0,4.598e-05]
[1763375913167,0.6090001,95991.0,95990.0,4.598e-05]
[1763375915612,0.71266948,95991.0,95990.0,4.598e-05]
[1763375915812,0.6090001,95991.0,95990.0,4.598e-05]
[1763375917268,0.65241884,95991.0,95990.0,4.598e-05]
[1763375918366,0.64941884,95991.0,95990.0,4.598e-05]
[1763375918722,0.68217478,95991.0,95990.0,4.598e-05]
[1763375919166,0.68117478,95991.0,95990.0,4.598e-05]
[1763375919579,0.68017478,95991.0,95990.0,4.598e-05]
[1763375919936,0.67917478,95991.0,95990.0,4.598e-05]
[1763375920137,0.68117478,95991.0,95990.0,4.598e-05]
[1763375920540,0.78484416,95991.0,95990.0,4.598e-05]
[1763375920882,0.78684416,95991.0,95990.0,4.598e-05]
[1763375921025,0.68317478,95991.0,95990.0,4.598e-05]
[1763375921229,0.68117478,95991.0,95990.0,4.598e-05]
[1763375921465,0.68317478,95991.0,95990.0,4.598e-05]
[1763375926543,0.04341874,95979.0,95947.0,0.1]
[1763375926746,0.36758964,95957.0,95947.0,0.10044173]
[1763375927147,0.03191,95956.0,95947.0,0.10044173]
[1763375927640,0.01247,95955.0,95947.0,0.10044173]
[1763375929102,0.01247,95948.0,95947.0,0.10044173]
[1763375929503,0.05017,95948.0,95947.0,0.00044173]
[1763375929911,0.01247,95948.0,95947.0,0.00044173]
[1763375931327,0.001,95948.0,95947.0,0.00044173]
[1763375934769,0.001,95948.0,95947.0,0.01546173]
[1763375934997,0.001,95948.0,95947.0,0.06842005]
[1763375935427,0.001,95948.0,95947.0,0.04826173]
[1763375935687,0.001,95948.0,95947.0,0.02499173]
[1763375938602,0.001,95948.0,95947.0,0.00997173]
[1763375940377,0.001,95948.0,95947.0,0.04826173]
[1763375941314,0.001,95948.0,95947.0,0.00997173]
[1763375941721,0.001,95948.0,95947.0,0.00044173]
[1763375941920,0.05069,95948.0,95947.0,0.00044173]
[1763375942157,0.01299,95948.0,95947.0,0.00044173]
[1763375942364,0.01299,95948.0,95947.0,0.03873173]
[1763375942365,0.001,95948.0,95947.0,0.03873173]
[1763375942541,0.001,95948.0,95947.0,0.00044173]
[1763375942882,0.001,95948.0,95947.0,0.02128657]
[1763375943138,0.001,95948.0,95947.0,0.03630657]
[1763375943340,0.001,95948.0,95947.0,0.02128657]
[1763375943515,0.0387,95948.0,95947.0,0.00044173]
[1763375943722,0.001,95948.0,95947.0,0.00044173]
[1763375946851,0.01612,95948.0,95947.0,0.00044173]
[1763375947166,0.0387,95948.0,95947.0,0.00044173]
[1763375947440,0.01612,95948.0,95947.0,0.00044173]
[1763375947651,0.001,95948.0,95947.0,0.00044173]
[1763375947810,0.01612,95948.0,95947.0,0.00044173]
[1763375948023,0.0387,95948.0,95947.0,0.00044173]
[1763375948443,0.04823,95948.0,95947.0,0.00044173]
[1763375948642,0.02565,95948.0,95947.0,0.00044173]
[1763375949072,0.04823,95948.0,95947.0,0.00044173]
[1763375951135,0.02565,95948.0,95947.0,0.00044173]
[1763375951307,0.01053,95948.0,95947.0,0.01546173]
[1763375954655,0.01053,95948.0,95947.0,0.32813173]
[1763375955250,0.01053,95948.0,95947.0,0.35140173]
[1763375955682,0.01053,95948.0,95947.0,0.32813173]
[1763375958147,0.01053,95948.0,95947.0,0.31311173]
[1763375961780,0.05108,95948.0,95947.0,0.31311173]
[1763375963389,0.05208,95948.0,95947.0,0.31311173]
[1763375965140,0.26052624,95948.0,95947.0,0.31311173]
[1763375965329,0.05208,95948.0,95947.0,0.31311173]
[1763375965902,0.26052624,95948.0,95947.0,0.31311173]
[1763375967354,0.05208,95948.0,95947.0,0.31311173]
[1763375968662,0.26052624,95948.0,95947.0,0.31311173]
[1763375969390,0.05208,95948.0,95947.0,0.31311173]
[1763375969592,0.01153,95948.0,95947.0,0.31311173]
[1763375969959,0.02798,95948.0,95947.0,0.31311173]
[1763375970171,0.05208,95948.0,95947.0,0.31311173]
[1763375971401,0.02798,95948.0,95947.0,0.31311173]
[1763375971722,0.05208,95948.0,95947.0,0.31311173]
[1763375974388,0.01153,95948.0,95947.0,0.31311173]
[1763375974611,0.05208,95948.0,95947.0,0.31311173]
[1763375976034,0.26052624,95948.0,95947.0,0.31311173]
[1763375976238,0.05208,95948.0,95947.0,0.31311173]
[1763375976482,0.26052624,95948.0,95947.0,0.31311173]
[1763375977614,0.05208,95948.0,95947.0,0.31311173]
[1763375978319,0.26052624,95948.0,95947.0,0.31311173]
[1763375980251,0.05208,95948.0,95947.0,0.31311173]
[1763375983797,0.58352624,95948.0,95947.0,0.31311173]
[1763375984216,0.37508,95948.0,95947.0,0.31311173]
[1763375989181,0.58352624,95948.0,95947.0,0.31311173]
[1763375989376,0.37508,95948.0,95947.0,0.31311173]
[1763375999953,0.58352624,95948.0,95947.0,0.31311173]
[1763376000500,0.65670092,95948.0,95947.0,0.31311173]
[1763376001351,0.65570092,95948.0,95947.0,0.31311173]
[1763376001581,0.65670092,95948.0,95947.0,0.31311173]
[1763376001812,0.65570092,95948.0,95947.0,0.31311173]
[1763376002165,0.65670092,95948.0,95947.0,0.31311173]
[1763376002661,0.65570092,95948.0,95947.0,0.31311173]
[1763376004408,0.65770092,95948.0,95947.0,0.31311173]
[1763376004751,0.62694498,95948.0,95947.0,0.31311173]
[1763376004991,0.00953,95948.0,95947.0,0.31311173]
[1763376005203,0.001,95948.0,95947.0,0.32862173]
[1763376005397,0.003,95948.0,95947.0,0.31311173]
[1763376005812,0.002,95948.0,95947.0,0.31311173]
[1763376006226,0.001,95948.0,95947.0,0.31311173]
[1763376007855,0.02471,95956.0,95947.0,0.31311173]
[1763376008058,0.02471,95954.0,95947.0,0.31311173]
[1763376008392,0.01641,95948.0,95947.0,0.31311173]
[1763376008730,0.04112,95948.0,95947.0,0.31311173]
[1763376009790,0.04212,95948.0,95947.0,0.31311173]
[1763376011119,0.04312,95948.0,95947.0,0.31311173]
[1763376012781,0.04212,95948.0,95947.0,0.31311173]
[1763376012924,0.04312,95948.0,95947.0,0.31311173]
[1763376013743,0.04212,95948.0,95947.0,0.31311173]
[1763376014185,0.04312,95948.0,95947.0,0.31311173]
[1763376014374,0.04112,95948.0,95947.0,0.31311173]
[1763376014550,0.04412,95948.0,95947.0,0.31311173]
[1763376015326,0.07546395,95948.0,95947.0,0.31311173]
[1763376016027,0.28391019,95948.0,95947.0,0.31311173]
[1763376016438,0.60691019,95948.0,95947.0,0.31311173]
[1763376016868,0.65032893,95948.0,95947.0,0.31311173]
[1763376017071,0.66178893,95948.0,95947.0,0.31311173]
[1763376020042,0.65878893,95948.0,95947.0,0.31311173]
[1763376020382,0.66178893,95948.0,95947.0,0.31311173]
[1763376033400,0.76545831,95948.0,95947.0,0.31311173]
[1763376033535,0.79330592,95948.0,95947.0,0.31311173]
[1763376034514,0.79130592,95948.0,95947.0,0.31311173]
[1763376034883,0.79330592,95948.0,95947.0,0.31311173]
[1763376035088,0.79230592,95948.0,95947.0,0.31311173]
[1763376035517,0.79430592,95948.0,95947.0,0.31311173]
[1763376035922,0.69063654,95948.0,95947.0,0.31311173]
[1763376036524,0.68663654,95948.0,95947.0,0.31311173]
[1763376036754,0.68863654,95948.0,95947.0,0.31311173]
[1763376036918,0.69163654,95948.0,95947.0,0.31311173]
[1763376038951,0.69163654,95948.0,95947.0,0.00044173]
[1763376039178,0.79530592,95948.0,95947.0,0.00044173]
[1763376039700,1.04390592,95948.0,95947.0,0.00044173]
[1763376040276,0.94023654,95948.0,95947.0,0.00044173]
[1763376047798,0.91238893,95948.0,95947.0,0.00044173]
[1763376049273,0.92875409,95948.0,95947.0,0.00044173]
[1763376049681,0.91238893,95948.0,95947.0,0.00044173]
[1763376049940,2.91238893,95948.0,95947.0,0.00044173]
[1763376050131,3.04390592,95948.0,95947.0,0.00044173]
[1763376051203,2.94023654,95948.0,95947.0,0.00044173]
[1763376053047,0.57489974,95932.0,95890.0,0.0004]
[1763376053207,0.65488189,95932.0,95931.0,0.00213242]
[1763376053414,0.7061395,95932.0,95931.0,0.00213242]
[1763376053608,0.7103205,95932.0,95931.0,0.00213242]
[1763376054012,0.7123205,95932.0,95931.0,0.00213242]
[1763376054432,0.7910926,95932.0,95931.0,0.00213242]
[1763376054755,0.81798988,95932.0,95931.0,0.00213242]
[1763376055687,1.06658988,95932.0,95931.0,0.00213242]
[1763376056519,1.06458988,95932.0,95931.0,0.00213242]
[1763376056778,1.06258988,95932.0,95931.0,0.00213242]
[1763376056937,1.06658988,95932.0,95931.0,0.00213242]
[1763376058161,1.14401133,95932.0,95931.0,0.00213242]
[1763376058843,1.04034195,95932.0,95931.0,0.00213242]
[1763376060705,0.89165415,95932.0,95931.0,0.00213242]
[1763376060885,0.93507289,95932.0,95931.0,0.00213242]
[1763376062550,0.97928945,95932.0,95931.0,0.00213242]
[1763376062871,0.9629205,95932.0,95931.0,0.00213242]
[1763376063069,0.99263265,95932.0,95931.0,0.00213242]
[1763376065780,1.00900174,95932.0,95931.0,0.00213242]
[1763376066189,1.03462336,95932.0,95931.0,0.00213242]
[1763376068413,1.03462336,95932.0,95891.0,0.002]
[1763376068414,0.04341874,95929.0,95891.0,0.002]
[1763376068639,0.02423,95892.0,95891.0,0.00213247]
[1763376069066,0.04764,95892.0,95891.0,0.00213247]
[1763376070421,0.04964,95892.0,95891.0,0.00213247]
[1763376075496,0.00967,95892.0,95891.0,0.00213247]
[1763376076544,0.03418,95892.0,95891.0,0.00213247]
[1763376076751,0.05028,95892.0,95891.0,0.00213247]
[1763376078340,0.00967,95892.0,95891.0,0.00213247]
[1763376078546,0.002,95892.0,95891.0,0.00213247]
[1763376082950,0.002,95892.0,95891.0,0.04079247]
[1763376084010,0.002,95892.0,95891.0,0.01808247]
[1763376084215,0.002,95892.0,95891.0,0.00213247]
[1763376087898,0.05265,95892.0,95891.0,0.00213247]
[1763376089074,0.02905,95892.0,95891.0,0.00213247]
[1763376089573,0.05265,95892.0,95891.0,0.00213247]
[1763376089787,0.06902048,95892.0,95891.0,0.00213247]
[1763376090192,0.05265,95892.0,95891.0,0.00213247]
[1763376093216,0.06902056,95892.0,95891.0,0.00213247]
[1763376093387,0.04542056,95892.0,95891.0,0.00213247]
[1763376093623,0.03012056,95892.0,95891.0,0.00213247]
[1763376093827,0.01837056,95892.0,95891.0,0.00213247]
[1763376100014,0.26583853,95892.0,95891.0,0.00213247]
[1763376100573,0.05727056,95892.0,95891.0,0.00213247]
[1763376100935,0.26583853,95892.0,95891.0,0.00213247]
[1763376101887,0.05727056,95892.0,95891.0,0.00213247]
[1763376102422,0.26583853,95892.0,95891.0,0.00213247]
[1763376103936,0.58883853,95892.0,95891.0,0.00213247]
[1763376104129,0.39202056,95892.0,95891.0,0.00213247]
[1763376104338,0.60058853,95892.0,95891.0,0.00213247]
[1763376105927,0.39202056,95892.0,95891.0,0.00213247]
[1763376106128,0.60058853,95892.0,95891.0,0.00213247]
[1763376107302,0.59958853,95892.0,95891.0,0.00213247]
[1763376107840,0.64300727,95892.0,95891.0,0.00213247]
[1763376108075,0.64400727,95892.0,95891.0,0.00213247]
[1763376110847,0.67185488,95892.0,95891.0,0.00213247]
[1763376111108,0.6944242,95892.0,95891.0,0.00213247]
[1763376111228,0.77552426,95892.0,95891.0,0.00213247]
[1763376111431,0.6780515,95892.0,95891.0,0.00213247]
[1763376112461,0.6875815,95892.0,95891.0,0.00213247]
[1763376123077,0.72299094,95892.0,95891.0,0.00213247]
[1763376123621,0.69736932,95892.0,95891.0,0.00213247]
[1763376123832,0.69636932,95892.0,95891.0,0.00213247]
[1763376124035,0.69836932,95892.0,95891.0,0.00213247]
[1763376124235,0.69736932,95892.0,95891.0,0.00213247]
[1763376124664,0.69836932,95892.0,95891.0,0.00213247]
[1763376125011,0.71474292,95892.0,95891.0,0.00213247]
[1763376125223,0.50617495,95892.0,95891.0,0.00213247]
[1763376125407,0.67052171,95892.0,95891.0,0.00213247]
[1763376128305,0.68689501,95892.0,95891.0,0.00213247]
[1763376131087,0.71399582,95892.0,95891.0,0.00213247]
[1763376133487,0.8176652,95892.0,95891.0,0.00213247]
[1763376133900,0.71399582,95892.0,95891.0,0.00213247]
[1763376135024,0.71099582,95892.0,95891.0,0.00213247]
[1763376135272,0.71399582,95892.0,95891.0,0.00213247]
[1763376138270,0.74223033,95892.0,95891.0,0.00213247]
[1763376139076,0.72585703,95892.0,95891.0,0.00213247]
[1763376139685,0.69762252,95892.0,95891.0,0.00213247]
[1763376143009,0.67052171,95892.0,95891.0,0.00213247]
[1763376147548,0.71708973,95892.0,95891.0,0.00213247]
[1763376147718,0.67052171,95892.0,95891.0,0.00213247]
[1763376149314,0.69762252,95892.0,95891.0,0.00213247]
[1763376149524,0.72324414,95892.0,95891.0,0.00213247]
[1763376149732,0.77966541,95892.0,95891.0,0.00213247]
[1763376150011,2.72324414,95892.0,95891.0,0.00213247]
[1763376150293,3.07551352,95892.0,95891.0,0.00213247]
[1763376150552,3.07351352,95892.0,95891.0,0.00213247]
[1763376150786,3.07251352,95892.0,95891.0,0.00213247]
[1763376151038,2.97284414,95892.0,95891.0,0.00213247]
[1763376151219,0.97284414,95892.0,95891.0,0.00213247]
[1763376152629,0.98921976,95892.0,95891.0,0.00213247]
[1763376152810,0.97284414,95892.0,95891.0,0.00213247]
[1763376154490,2.97284414,95892.0,95891.0,0.00213247]
[1763376155815,2.98922003,95892.0,95891.0,0.00213247]
[1763376156015,3.04996899,95892.0,95891.0,0.00213247]
[1763376157271,3.10632313,95892.0,95891.0,0.00213247]
[1763376157492,3.04557417,95892.0,95891.0,0.00213247]
[1763376157911,2.98922003,95892.0,95891.0,0.00213247]
[1763376162320,3.04557417,95892.0,95891.0,0.00213247]
[1763376162901,3.04357417,95892.0,95891.0,0.00213247]
[1763376163101,2.98722003,95892.0,95891.0,0.00213247]
[1763376163300,2.98919402,95892.0,95891.0,0.00213247]
[1763376165270,3.04554816,95892.0,95891.0,0.00213247]
[1763376166438,3.02917227,95892.0,95891.0,0.00213247]
[1763376166646,3.00355065,95892.0,95891.0,0.00213247]
[1763376167782,2.94719651,95892.0,95891.0,0.00213247]
[1763376169141,3.13284165,95892.0,95891.0,0.00213247]
[1763376169378,3.07648751,95892.0,95891.0,0.00213247]
[1763376171297,2.61288888,95891.0,95890.0,1e-08]
[1763376171506,0.57505851,95859.0,95858.0,0.00243168]
[1763376171727,0.59977851,95859.0,95858.0,0.00287388]
[1763376171933,0.60396182,95859.0,95858.0,0.00287388]
[1763376172099,0.62662182,95859.0,95858.0,0.00287388]
[1763376172716,0.41798205,95859.0,95858.0,0.00287388]
[1763376172865,0.62662182,95859.0,95858.0,0.00287388]
[1763376173212,0.62762182,95859.0,95858.0,0.00287388]
[1763376173465,0.62862182,95859.0,95858.0,0.00287388]
[1763376176907,0.41998205,95859.0,95858.0,0.00287388]
[1763376178310,0.37260205,95859.0,95858.0,0.00287388]
[1763376178473,0.37260205,95859.0,95858.0,0.01951388]
[1763376178474,0.58124182,95859.0,95858.0,0.01951388]
[1763376178681,0.58124182,95859.0,95858.0,0.00287388]
[1763376179075,0.61914182,95859.0,95858.0,0.00287388]
[1763376180218,0.41050205,95859.0,95858.0,0.00287388]
[1763376180640,0.37260205,95859.0,95858.0,0.00287388]
[1763376181725,0.32918331,95859.0,95858.0,0.00287388]
[1763376183974,0.57572308,95859.0,95858.0,0.00287388]
[1763376185366,0.36708331,95859.0,95858.0,0.00287388]
[1763376186821,0.57572308,95859.0,95858.0,0.00287388]
[1763376187584,0.36708331,95859.0,95858.0,0.00287388]
[1763376188398,0.57572308,95859.0,95858.0,0.00287388]
[1763376188833,0.36708331,95859.0,95858.0,0.00287388]
[1763376189355,0.57572308,95859.0,95858.0,0.00287388]
[1763376195964,0.36708331,95859.0,95858.0,0.00287388]
[1763376196164,0.57572308,95859.0,95858.0,0.00287388]
[1763376197703,0.32918331,95859.0,95858.0,0.00287388]
[1763376200604,0.32818331,95859.0,95858.0,0.00287388]
[1763376201012,0.32718331,95859.0,95858.0,0.00287388]
[1763376201409,0.32818331,95859.0,95858.0,0.00287388]
[1763376208790,0.00518331,95859.0,95858.0,0.01918388]
[1763376209034,0.00518331,95859.0,95858.0,0.11410807]
[1763376209035,0.001,95859.0,95858.0,0.11410807]
[1763376209634,0.001,95859.0,95858.0,0.09324388]
[1763376209837,0.01637911,95895.0,95870.0,0.2]
[1763376210041,0.01637911,95895.0,95891.0,0.05212215]
[1763376210244,0.01637911,95895.0,95894.0,0.00953]
[1763376210399,0.01637911,95895.0,95894.0,0.04635515]
[1763376210598,0.01637911,95895.0,95894.0,0.07099515]
[1763376211180,0.001,95895.0,95894.0,0.05048]
[1763376211376,0.01222,95935.0,95903.0,0.04942]
[1763376211377,0.01057031,95922.0,95903.0,0.04942]
[1763376211569,0.01057031,95922.0,95894.0,0.07146891]
[1763376211570,0.01637911,95917.0,95901.0,0.05212215]
[1763376211742,0.01637911,95917.0,95904.0,0.02085418]
[1763376211922,0.01637911,95917.0,95905.0,0.03417]
[1763376212136,0.01637911,95917.0,95906.0,0.04549375]
[1763376212564,0.01637911,95917.0,95907.0,0.02464]
[1763376212885,0.01637911,95917.0,95908.0,0.02085331]
[1763376213092,0.01737911,95917.0,95909.0,0.0208531]
[1763376213300,0.01737911,95917.0,95916.0,0.00953]
[1763376213484,0.01637911,95917.0,95916.0,0.05048]
[1763376213643,0.323,95929.0,95916.0,0.05048]
[1763376213831,0.69187783,95926.0,95917.0,0.01985136]
[1763376214037,0.03135128,95919.0,95918.0,0.02085114]
[1763376214239,0.03135128,95919.0,95916.0,0.00953]
[1763376214437,0.001,95917.0,95916.0,0.00953]
[1763376214641,0.03135128,95919.0,95916.0,0.00953]
[1763376216737,0.03235128,95919.0,95916.0,0.00953]
[1763376217860,0.03235128,95919.0,95918.0,0.01631]
[1763376217861,0.001,95919.0,95918.0,0.01631]
[1763376218076,0.001,95919.0,95918.0,0.03627179]
[1763376218284,0.001,95919.0,95918.0,0.06091179]
[1763376219184,0.03134974,95924.0,95918.0,0.06091179]
[1763376219396,0.03134974,95924.0,95923.0,0.02484]
[1763376219834,0.03134974,95924.0,95923.0,0.04948]
[1763376220065,0.05378692,95939.0,95923.0,0.04948]
[1763376220298,0.03134797,95932.0,95924.0,0.04548983]
[1763376220526,0.03134797,95932.0,95924.0,0.04448983]
[1763376220740,0.03134797,95932.0,95924.0,0.04362238]
[1763376220963,0.02864,95925.0,95924.0,0.00013255]
[1763376221376,0.01222,95925.0,95924.0,0.00013255]
[1763376222045,0.02864,95925.0,95924.0,0.00013255]
[1763376222906,0.01222,95925.0,95924.0,0.00013255]
[1763376223459,0.04341874,95930.0,95924.0,0.00013255]
[1763376223935,0.02085114,95929.0,95924.0,0.00013255]
[1763376224085,0.02085114,95929.0,95924.0,0.02098238]
[1763376224290,0.02085114,95929.0,95925.0,0.02084962]
[1763376225443,0.02085114,95929.0,95924.0,0.00013255]
[1763376225770,0.02085114,95929.0,95924.0,0.02401255]
[1763376226140,0.02085114,95929.0,95925.0,0.02084962]
[1763376226536,0.02859007,95935.0,95925.0,0.02084962]
[1763376226537,0.01637007,95935.0,95928.0,0.01516]
[1763376226680,0.02401255,95933.0,95929.0,0.02084875]
[1763376226884,0.02401255,95933.0,95930.0,0.02084853]
[1763376227114,0.02401255,95933.0,95931.0,0.02084831]
[1763376228058,0.02501255,95933.0,95924.0,0.00013255]
[1763376228265,0.02793,95925.0,95924.0,0.00013255]
[1763376229455,0.05255,95925.0,95924.0,0.00013255]
[1763376229866,0.58404622,95925.0,95924.0,0.00013255]
[1763376230651,0.37555,95925.0,95924.0,0.00013255]
[1763376230854,0.35093,95925.0,95924.0,0.00013255]
[1763376231211,0.37555,95925.0,95924.0,0.00013255]
[1763376231337,0.58404622,95925.0,95924.0,0.00013255]
[1763376231937,0.62846496,95925.0,95924.0,0.00013255]
[1763376232411,0.62946496,95925.0,95924.0,0.00013255]
[1763376233519,0.42096874,95925.0,95924.0,0.00013255]
[1763376234540,0.62946496,95925.0,95924.0,0.00013255]
[1763376235735,0.42096874,95925.0,95924.0,0.00013255]
[1763376236477,0.43733957,95925.0,95924.0,0.00013255]
[1763376236645,0.42096874,95925.0,95924.0,0.00013255]
[1763376237502,0.39634874,95925.0,95924.0,0.00013255]
[1763376237887,0.42096874,95925.0,95924.0,0.00013255]
[1763376238648,0.41996874,95925.0,95924.0,0.00013255]
[1763376239108,0.41896874,95925.0,95924.0,0.00013255]
[1763376239297,0.41996874,95925.0,95924.0,0.00013255]
[1763376239489,0.42096874,95925.0,95924.0,0.00013255]
[1763376239689,0.41271942,95925.0,95924.0,0.00013255]
[1763376239894,0.43357078,95925.0,95924.0,0.00013255]
[1763376240211,0.44335195,95925.0,95924.0,0.00013255]
[1763376240423,0.38361321,95925.0,95924.0,0.00013255]
[1763376240659,0.37383204,95925.0,95924.0,0.00013255]
[1763376241228,0.38361653,95925.0,95924.0,0.00013255]
[1763376241626,0.36276517,95925.0,95924.0,0.00013255]
[1763376242047,0.34137068,95925.0,95924.0,0.03917255]
[1763376242253,0.002,95925.0,95924.0,0.03917255]
[1763376242459,0.002,95925.0,95924.0,0.06002238]
[1763376243875,0.04294,95925.0,95924.0,0.00013255]
[1763376244084,0.67026915,95925.0,95924.0,0.00013255]
[1763376244270,0.72995372,95925.0,95924.0,0.00013255]
[1763376244472,0.72895372,95925.0,95924.0,0.00013255]
[1763376245028,0.79137318,95925.0,95924.0,0.00013255]
[1763376245403,0.72895372,95925.0,95924.0,0.00013255]
[1763376246159,0.72016917,95925.0,95924.0,0.00013255]
[1763376246515,0.72995331,95925.0,95924.0,0.00013255]
[1763376247044,0.72895331,95925.0,95924.0,0.00013255]
[1763376247455,0.72995331,95925.0,95924.0,0.00013255]
[1763376247858,0.72895331,95925.0,95924.0,0.00013255]
[1763376248177,0.75810927,95925.0,95924.0,0.00013255]
[1763376248372,0.75710927,95925.0,95924.0,0.00013255]
[1763376248599,0.75810927,95925.0,95924.0,0.00013255]
[1763376248799,0.75910927,95925.0,95924.0,0.00013255]
[1763376248999,0.75810927,95925.0,95924.0,0.00013255]
[1763376249197,0.72895331,95925.0,95924.0,0.00013255]
[1763376249426,0.7021025,95925.0,95924.0,0.00013255]
[1763376254104,0.49360628,95925.0,95924.0,0.00013255]
[1763376254304,0.7021025,95925.0,95924.0,0.00013255]
[1763376255870,0.47304302,95925.0,95924.0,0.00013255]
[1763376256012,0.48941521,95925.0,95924.0,0.00013255]
[1763376256210,0.47304302,95925.0,95924.0,0.00013255]
[1763376256576,0.68153924,95925.0,95924.0,0.00013255]
[1763376257543,0.47304302,95925.0,95924.0,0.00013255]
[1763376257947,0.68153924,95925.0,95924.0,0.00013255]
[1763376259035,0.6717551,95925.0,95924.0,0.00013255]
[1763376259226,0.68153074,95925.0,95924.0,0.00013255]
[1763376259431,0.69790278,95925.0,95924.0,0.00013255]
[1763376262202,0.68812714,95925.0,95924.0,0.00013255]
[1763376264456,0.66558185,95925.0,95924.0,0.00013255]
[1763376264662,0.68814136,95925.0,95924.0,0.00013255]
[1763376269921,0.67176932,95925.0,95924.0,0.00013255]
[1763376271902,0.67076932,95925.0,95924.0,0.00013255]
[1763376273159,0.68714138,95925.0,95924.0,0.00013255]
[1763376275640,0.69693475,95925.0,95924.0,0.00013255]
[1763376277245,0.68714138,95925.0,95924.0,0.00013255]
[1763376281574,0.69693702,95925.0,95924.0,0.00013255]
[1763376283843,0.68056496,95925.0,95924.0,0.00013255]
[1763376284919,0.68056844,95925.0,95924.0,0.00013255]
[1763376286007,0.67956844,95925.0,95924.0,0.00013255]
[1763376295303,0.47107222,95925.0,95924.0,0.00013255]
[1763376295510,0.4612731,95925.0,95924.0,0.00013255]
[1763376296089,0.0993331,95925.0,95924.0,0.00013255]
[1763376296246,0.07677359,95925.0,95924.0,0.00013255]
[1763376296849,0.001,95925.0,95924.0,0.04153255]
[1763376297273,0.01737058,95925.0,95924.0,0.01671255]
[1763376297478,0.001,95925.0,95924.0,0.01671255]
[1763376297693,0.001,95925.0,95924.0,0.03756238]
[1763376298303,0.02482,95931.0,95924.0,0.03756238]
[1763376298484,0.02482,95931.0,95925.0,0.02084962]
[1763376298687,0.323,95933.0,95930.0,0.00953]
[1763376299583,0.323,95933.0,95932.0,0.01658]
[1763376299997,0.323,95933.0,95930.0,0.00953]
[1763376300604,0.01557,95931.0,95925.0,0.1]
[1763376300790,0.01557,95929.0,95925.0,0.1]
[1763376301120,0.01557,95926.0,95925.0,0.1]
[1763376301734,0.03978,95926.0,95925.0,0.1]
[1763376301903,0.01167,95933.0,95925.0,0.1]
[1763376301904,0.04341874,95929.0,95925.0,0.1]
[1763376302104,0.04341874,95927.0,95925.0,0.1]
[1763376303611,0.03978,95926.0,95925.0,0.1]
[1763376304164,0.57427416,95926.0,95925.0,0.1]
[1763376304366,0.57127404,95926.0,95925.0,0.1]
[1763376305571,0.36278,95926.0,95925.0,0.1]
[1763376309845,0.33857,95926.0,95925.0,0.1]
[1763376311399,0.323,95926.0,95925.0,0.1414]
[1763376311601,0.323,95926.0,95925.0,0.11658]
[1763376311740,0.323,95926.0,95925.0,0.1]
[1763376314881,0.323,95926.0,95925.0,0.11658]
[1763376315225,0.01637013,95932.0,95925.0,0.16224962]
[1763376315421,0.01637013,95932.0,95926.0,0.07297155]
[1763376315641,0.01637013,95932.0,95931.0,0.02562]
[1763376316066,0.323,95934.0,95931.0,0.02562]
[1763376317033,0.04341874,95938.0,95931.0,0.02562]